bitfinex-derivatives/quotes_ETHF0:USTF0_20260307
["timestamp","ask_amount","ask_price","bid_price","bid_amount"]
[1772861174692,1.95759016,1975.2,1974.4,0.6803144]
[1772861190499,1.95759016,1975.0,1974.4,0.6803144]
[1772861190697,1.95759016,1974.8,1974.2,0.68762159]
[1772861214425,6.637,1975.1,1974.2,0.68762159]
[1772861214622,6.16540499,1975.0,1974.2,0.68762159]
[1772861214826,6.637,1975.1,1974.2,0.68762159]
[1772861215031,6.16540073,1975.0,1974.2,0.68762159]
[1772861215331,6.637,1975.1,1974.2,0.68762159]
[1772861215531,6.66685903,1975.0,1974.2,0.68762159]
[1772861215829,6.637,1975.1,1974.2,0.68762159]
[1772861216128,6.66685997,1975.0,1974.2,0.68762159]
[1772861216331,6.16665525,1974.9,1974.2,0.68762159]
[1772861216530,6.637,1975.1,1974.2,0.68762159]
[1772861216731,6.6676084,1975.0,1974.2,0.68762159]
[1772861216931,6.16665471,1974.9,1974.2,0.68762159]
[1772861217131,6.637,1975.1,1974.2,0.68762159]
[1772861217331,6.66767862,1975.0,1974.2,0.68762159]
[1772861217629,6.16665457,1974.9,1974.2,0.68762159]
[1772861217830,6.16727647,1974.8,1973.9,0.6890168]
[1772861218033,10.86305691,1975.1,1973.9,0.6890168]
[1772861218335,6.66985768,1975.0,1973.9,0.6890168]
[1772861218534,6.66985768,1974.9,1973.9,0.6890168]
[1772861218725,6.16764237,1974.8,1973.9,0.69453001]
[1772861219025,10.86305691,1975.1,1973.9,0.69453001]
[1772861219224,6.6708983,1975.0,1973.9,0.69453001]
[1772861219527,6.6708983,1974.9,1973.9,0.69453001]
[1772861219724,6.16860461,1974.8,1973.9,0.69453001]
[1772861219923,10.86305691,1975.1,1973.9,0.69453001]
[1772861220134,6.67198267,1975.0,1973.9,0.69453001]
[1772861220335,6.67198267,1974.9,1973.9,0.69453001]
[1772861220630,6.16960757,1974.8,1973.9,0.69453001]
[1772861220831,10.86305691,1975.1,1973.9,0.69453001]
[1772861221133,6.67297006,1975.0,1973.9,0.69453001]
[1772861221332,6.67297006,1974.9,1973.9,0.69453001]
[1772861221633,6.1704899,1974.8,1973.9,0.69453001]
[1772861221935,10.86305691,1975.1,1973.9,0.69453001]
[1772861222133,6.67259974,1975.0,1973.9,0.69453001]
[1772861222334,6.67259974,1974.9,1973.9,0.69453001]
[1772861222535,6.17017835,1974.8,1973.9,0.69453001]
[1772861222737,10.86305691,1975.1,1973.9,0.69453001]
[1772861222938,6.6723219,1975.0,1973.9,0.69453001]
[1772861223138,6.6723219,1974.9,1973.9,0.69453001]
[1772861223333,6.1699214,1974.8,1973.9,0.69453001]
[1772861223534,6.637,1975.0,1973.9,0.69453001]
[1772861223733,6.67212577,1974.9,1973.9,0.69453001]
[1772861223938,6.16974003,1974.8,1973.9,0.69453001]
[1772861224139,6.637,1975.0,1973.9,0.69453001]
[1772861224338,6.67196304,1974.9,1973.9,0.69453001]
[1772861224540,6.16957471,1974.8,1973.9,0.69453001]
[1772861224737,6.637,1975.0,1973.9,0.69453001]
[1772861225040,6.67198573,1974.9,1973.9,0.69453001]
[1772861225339,6.637,1975.0,1974.0,21.673]
[1772861225645,10.86305691,1975.3,1974.1,0.68625994]
[1772861225940,6.6727594,1975.2,1974.1,0.68625994]
[1772861226242,6.17032759,1975.1,1974.1,0.68625994]
[1772861226437,6.637,1975.3,1974.1,0.68625994]
[1772861226637,4.22605691,1975.5,1974.3,0.68625994]
[1772861226833,0.50241818,1975.4,1974.3,0.68625994]
[1772861227041,6.17018469,1975.3,1974.3,0.68625994]
[1772861227338,4.22605691,1975.5,1974.3,0.68625994]
[1772861227533,0.50221626,1975.4,1974.3,0.68625994]
[1772861227732,6.16770425,1975.3,1974.3,0.68625994]
[1772861227937,4.22605691,1975.5,1974.3,0.68625994]
[1772861228240,0.50221625,1975.4,1974.3,0.68625994]
[1772861228442,6.16770413,1975.3,1974.3,0.68625994]
[1772861228642,10.86305691,1975.6,1974.3,0.68625994]
[1772861228842,6.65984384,1975.5,1974.3,0.68625994]
[1772861229040,6.65984384,1975.4,1974.3,0.68625994]
[1772861229338,10.86305691,1975.6,1974.3,0.68625994]
[1772861229539,6.65809347,1975.5,1974.3,0.68625994]
[1772861229740,6.15605034,1975.4,1974.3,0.68625994]
[1772861229943,10.86305691,1975.6,1974.3,0.68625994]
[1772861230143,0.50199062,1975.5,1974.3,0.68625994]
[1772861230344,10.86305691,1975.6,1974.3,0.68625994]
[1772861230642,6.65580267,1975.5,1974.3,0.68625994]
[1772861230842,6.15392521,1975.4,1974.3,0.68625994]
[1772861231144,10.86830849,1975.6,1974.3,0.68625994]
[1772861231345,6.65477392,1975.5,1974.3,0.68625994]
[1772861231542,6.15292311,1975.4,1974.3,0.68625994]
[1772861231841,10.86830849,1975.6,1974.3,0.68625994]
[1772861232043,6.65445058,1975.5,1974.3,0.68625994]
[1772861232239,6.15268165,1975.4,1974.3,0.68625994]
[1772861232446,6.637,1975.6,1974.3,0.68625994]
[1772861232646,6.65329615,1975.5,1974.3,0.68625994]
[1772861232846,6.15161448,1975.4,1974.3,0.68625994]
[1772861233046,6.637,1975.6,1974.3,0.68625994]
[1772861233349,6.65330338,1975.5,1974.3,0.68625994]
[1772861233646,6.15164141,1975.4,1974.3,0.68625994]
[1772861233846,6.637,1975.6,1974.3,0.68625994]
[1772861234041,6.65230589,1975.5,1974.3,0.68625994]
[1772861234238,6.1506989,1975.4,1974.3,0.68625994]
[1772861234444,6.637,1975.6,1974.3,0.68625994]
[1772861234644,6.65140865,1975.5,1974.3,0.68625994]
[1772861234844,6.14986931,1975.4,1974.3,0.68625994]
[1772861235044,6.637,1975.6,1974.3,0.68625994]
[1772861235244,6.65140882,1975.5,1974.3,0.68625994]
[1772861235440,6.14986946,1975.4,1974.3,0.68625994]
[1772861235645,6.637,1975.6,1974.3,0.68625994]
[1772861235950,6.6506251,1975.5,1974.3,0.68625994]
[1772861236247,6.14914483,1975.4,1974.3,0.68625994]
[1772861236447,6.637,1975.6,1974.3,0.68625994]
[1772861236648,6.64994946,1975.5,1974.3,0.68625994]
[1772861236843,6.14852013,1975.4,1974.3,0.68625994]
[1772861237149,6.637,1975.6,1974.3,0.68625994]
[1772861237349,6.6496543,1975.5,1974.3,0.68625994]
[1772861237549,6.637,1975.6,1974.3,0.68625994]
[1772861237748,6.64907499,1975.5,1974.3,0.68625994]
[1772861238048,6.637,1975.6,1974.3,0.68625994]
[1772861238247,12.78371164,1975.5,1974.3,0.68625994]
[1772861238551,6.636,1975.5,1974.3,0.68625994]
[1772861247852,0.25309,1975.7,1974.3,0.68625994]
[1772861248053,6.6456737,1975.6,1974.3,0.68625994]
[1772861248253,6.14457493,1975.5,1974.3,0.68625994]
[1772861248557,6.88909,1975.7,1974.3,0.68625994]
[1772861248758,6.64638008,1975.6,1974.3,0.68625994]
[1772861248947,0.25309,1975.7,1974.3,0.68625994]
[1772861249258,6.64236032,1975.8,1974.6,0.67605218]
[1772861249452,6.14630097,1975.7,1974.6,0.67605218]
[1772861249651,6.64236032,1975.8,1974.6,0.67605218]
[1772861249853,6.14621114,1975.7,1974.6,0.67605218]
[1772861250156,6.64236032,1975.8,1974.6,0.67605218]
[1772861250361,6.14599846,1975.7,1974.6,0.67605218]
[1772861250553,6.64236032,1975.8,1974.6,0.67605218]
[1772861250858,6.14600113,1975.7,1974.6,0.67605218]
[1772861251053,6.64236032,1975.8,1974.6,0.67605218]
[1772861251253,6.14694681,1975.7,1974.6,0.67605218]
[1772861251454,6.64236032,1975.8,1974.6,0.67605218]
[1772861251659,6.14782209,1975.7,1974.6,0.67605218]
[1772861251859,6.64236032,1975.8,1974.6,0.67605218]
[1772861252059,6.14782279,1975.7,1974.6,0.67605218]
[1772861252358,6.64236032,1975.8,1974.6,0.67605218]
[1772861252658,6.14904232,1975.7,1974.6,0.67605218]
[1772861252861,6.64236032,1975.8,1974.6,0.67605218]
[1772861253161,6.14904141,1975.7,1974.6,0.67605218]
[1772861253358,6.64236032,1975.8,1974.6,0.67605218]
[1772861253559,6.15067259,1975.7,1974.6,0.67605218]
[1772861253758,6.64236032,1975.8,1974.6,0.67605218]
[1772861253962,6.15067235,1975.7,1974.6,0.67605218]
[1772861254260,6.1530754,1975.6,1974.6,0.67605218]
[1772861254461,6.64236032,1975.8,1974.6,0.67605218]
[1772861254660,6.65463859,1975.7,1974.6,0.67605218]
[1772861254859,6.64236032,1975.8,1974.6,0.67605218]
[1772861254860,6.15285535,1975.6,1974.6,0.67605218]
[1772861255060,6.64236032,1975.8,1974.6,0.67605218]
[1772861255262,6.65449892,1975.7,1974.6,0.67605218]
[1772861255563,6.15271596,1975.6,1974.6,0.67605218]
[1772861255757,11.12674881,1975.8,1974.6,0.67605218]
[1772861255962,6.65792192,1975.7,1974.6,0.67605218]
[1772861256260,6.15588825,1975.6,1974.6,0.67605218]
[1772861256460,11.12674881,1975.8,1974.6,0.67605218]
[1772861256660,6.65895538,1975.7,1974.6,0.67605218]
[1772861256861,6.65895538,1975.6,1974.6,0.67605218]
[1772861257157,11.12674881,1975.8,1974.6,0.67605218]
[1772861257461,6.65899564,1975.7,1974.6,0.67605218]
[1772861257660,6.65899564,1975.6,1974.6,0.67605218]
[1772861257962,4.49275903,1975.8,1974.6,0.67605218]
[1772861258162,13.29509251,1975.7,1974.6,0.67605218]
[1772861258365,6.636,1975.7,1974.6,0.67605218]
[1772861261065,0.25944032,1975.8,1974.6,0.67605218]
[1772861261260,6.15565453,1975.7,1974.6,0.67605218]
[1772861261464,0.00636032,1975.8,1974.9,0.68010727]
[1772861262764,0.00636032,1975.8,1974.9,41.48010727]
[1772861262965,0.00636032,1975.8,1975.0,0.6797503]
[1772861274576,0.00636032,1975.8,1975.3,0.67916802]
[1772861274777,0.00636032,1975.8,1975.3,0.6834855]
[1772861285282,4.2297533,1976.3,1975.7,0.67824112]
[1772861285483,0.50219227,1976.2,1975.7,0.67824112]
[1772861285689,6.15749033,1976.1,1975.7,0.67824112]
[1772861285986,6.634,1976.3,1975.7,0.67824112]
[1772861286187,6.65959629,1976.2,1975.7,0.67824112]
[1772861286487,6.63849247,1976.3,1975.7,0.67824112]
[1772861286488,6.15741175,1976.1,1975.7,0.67824112]
[1772861286679,6.63849247,1976.3,1975.7,0.67824112]
[1772861286884,6.66024061,1976.2,1975.7,0.67824112]
[1772861287086,6.15800656,1976.1,1975.7,0.67824112]
[1772861287285,6.63849247,1976.3,1975.7,0.67824112]
[1772861287582,6.66118994,1976.2,1975.7,0.67824112]
[1772861287779,6.15888235,1976.1,1975.7,0.67824112]
[1772861287979,6.63849247,1976.3,1975.7,0.67824112]
[1772861288179,6.66115581,1976.2,1975.7,0.67824112]
[1772861288380,6.1588508,1976.1,1975.7,0.67824112]
[1772861288580,6.63849247,1976.3,1975.7,0.67824112]
[1772861288780,6.66109374,1976.2,1975.7,0.67824112]
[1772861288982,6.15876204,1976.1,1975.7,0.67824112]
[1772861289182,10.86824577,1976.3,1975.7,0.67824112]
[1772861289390,6.66167664,1976.2,1975.7,0.67824112]
[1772861289592,6.15930108,1976.1,1975.7,0.67824112]
[1772861289793,6.63849247,1976.3,1975.7,0.67824112]
[1772861289982,6.66167656,1976.2,1975.7,0.67824112]
[1772861290184,6.159301,1976.1,1975.7,0.67824112]
[1772861290383,10.86824577,1976.3,1975.7,0.67824112]
[1772861290583,6.66252422,1976.2,1975.7,0.67824112]
[1772861290887,6.16008325,1976.1,1975.7,0.67824112]
[1772861291085,10.86824577,1976.3,1975.7,0.67824112]
[1772861291286,6.66253204,1976.2,1975.7,0.67824112]
[1772861291493,6.16009048,1976.1,1975.7,0.67824112]
[1772861291693,10.86824577,1976.3,1975.7,0.67824112]
[1772861291896,6.66365905,1976.2,1975.7,0.67824112]
[1772861292196,6.16115228,1976.1,1975.7,0.67824112]
[1772861292398,10.86824577,1976.3,1975.7,0.67824112]
[1772861292695,6.66347215,1976.2,1975.7,0.67824112]
[1772861292893,6.16098065,1976.1,1975.7,0.67824112]
[1772861293093,10.86824577,1976.3,1975.5,0.67614148]
[1772861293293,6.66353533,1976.2,1975.5,0.67614148]
[1772861293493,6.16106111,1976.1,1975.5,0.67614148]
[1772861293693,10.86824577,1976.3,1975.5,0.67614148]
[1772861293995,6.66335656,1976.2,1975.5,0.67614148]
[1772861294294,6.16087481,1976.1,1975.5,0.67614148]
[1772861294591,10.86824577,1976.3,1975.5,0.67614148]
[1772861294793,6.66312012,1976.2,1975.5,0.67614148]
[1772861294988,6.16065661,1976.1,1975.5,0.67614148]
[1772861295190,10.86824577,1976.3,1975.5,0.67614148]
[1772861295385,6.66321187,1976.2,1975.5,0.67614148]
[1772861295584,6.16074251,1976.1,1975.5,0.67614148]
[1772861295785,10.86824577,1976.3,1975.5,0.67614148]
[1772861295999,6.6634249,1976.2,1975.5,0.67614148]
[1772861296295,6.16093947,1976.1,1975.5,0.67614148]
[1772861296495,6.651,1976.1,1975.5,0.67614148]
[1772861302599,0.00449247,1976.3,1975.5,0.67614148]
[1772861302800,13.34102919,1976.2,1975.5,0.67614148]
[1772861303097,6.16242533,1976.1,1975.5,0.67614148]
[1772861304499,6.16242533,1976.1,1975.7,0.6732377]
[1772861304700,6.68749247,1976.3,1975.7,0.6732377]
[1772861304900,6.16327967,1976.2,1975.7,0.6732377]
[1772861305099,6.68749247,1976.3,1975.7,0.6732377]
[1772861307203,6.16685,1976.2,1975.7,0.6732377]
[1772861307497,6.68749247,1976.3,1975.7,0.6732377]
[1772861314409,0.00449247,1976.3,1975.7,0.6732377]
[1772861314614,6.72949247,1976.3,1975.7,0.6732377]
[1772861321818,1.95655027,1976.2,1975.7,0.6732377]
[1772861322015,6.72949247,1976.3,1975.7,0.6732377]
[1772861328230,6.72949247,1976.3,1975.4,0.64407896]
[1772861332323,6.16708676,1976.2,1975.4,0.64407896]
[1772861332524,6.72949247,1976.3,1975.4,0.64407896]
[1772861332723,6.16708684,1976.2,1975.4,0.64407896]
[1772861332925,6.807,1976.2,1975.4,0.64407896]
[1772861336024,8.76355027,1976.2,1975.4,0.64407896]
[1772861336629,6.807,1976.2,1975.4,0.64407896]
[1772861351441,0.00449247,1976.3,1975.4,0.64407896]
[1772861351644,6.16916773,1976.2,1975.4,0.64407896]
[1772861351846,0.00449247,1976.3,1975.4,0.64407896]
[1772861352143,6.16923823,1976.2,1975.4,0.64407896]
[1772861352345,0.00449247,1976.3,1975.4,0.64407896]
[1772861352645,6.16929192,1976.2,1975.4,0.64407896]
[1772861352844,0.00449247,1976.3,1975.4,0.64407896]
[1772861353047,6.16919373,1976.2,1975.4,0.64407896]
[1772861353245,0.00449247,1976.3,1975.4,0.64407896]
[1772861353450,6.16910254,1976.2,1975.4,0.64407896]
[1772861353651,0.00449247,1976.3,1975.4,0.64407896]
[1772861353845,0.00449247,1976.3,1975.6,0.6486312]
[1772861396478,0.00449247,1976.3,1975.6,2.60425483]
[1772861396674,0.00449247,1976.3,1975.6,1.95562363]
[1772861396881,0.00449247,1976.3,1975.7,0.66529717]
[1772861419404,1.9601161,1976.3,1975.7,0.66529717]
[1772861421501,1.95562363,1975.9,1975.4,0.65660201]
[1772861421716,1.95562363,1976.1,1975.4,0.65660201]
[1772861421895,8.8061161,1976.3,1975.4,0.65660201]
[1772861422109,6.66229255,1976.2,1975.4,0.65660201]
[1772861422408,8.8061161,1976.3,1975.4,0.65660201]
[1772861422609,6.15215341,1976.2,1975.4,0.65660201]
[1772861422809,0.00449247,1976.3,1975.8,0.65660201]
[1772861433112,13.31132576,1976.7,1975.8,0.65660201]
[1772861433415,6.6609733,1976.6,1975.8,0.65660201]
[1772861433614,9.06758363,1976.7,1975.8,0.65660201]
[1772861433810,6.66147969,1976.6,1975.8,0.65660201]
[1772861434011,0.00413602,1976.6,1975.8,0.65660201]
[1772861440121,1.95562363,1976.5,1975.8,0.65660201]
[1772861441517,1.95562363,1976.3,1975.8,0.65660201]
[1772861441822,1.95562363,1976.5,1975.8,0.65660201]
[1772861443421,1.95562363,1976.3,1975.8,0.65660201]
[1772861458627,6.878,1976.5,1975.8,0.65660201]
[1772861458827,6.17727119,1976.4,1975.8,0.65660201]
[1772861459026,6.878,1976.5,1975.8,0.65660201]
[1772861459228,6.17739604,1976.4,1975.8,0.65660201]
[1772861459428,6.878,1976.5,1975.8,0.65660201]
[1772861459729,6.17739386,1976.4,1975.8,0.65660201]
[1772861459929,6.878,1976.5,1975.8,0.65660201]
[1772861460229,6.17739608,1976.4,1975.8,0.65660201]
[1772861460528,6.878,1976.5,1975.8,0.65660201]
[1772861460726,6.177543,1976.4,1975.8,0.65660201]
[1772861460927,6.878,1976.5,1975.8,0.65660201]
[1772861461129,6.17753267,1976.4,1975.8,0.65660201]
[1772861461328,6.878,1976.5,1975.8,0.65660201]
[1772861461530,6.17800329,1976.4,1975.8,0.65660201]
[1772861461729,6.878,1976.5,1975.8,0.65660201]
[1772861461928,6.17800337,1976.4,1975.8,0.65660201]
[1772861462128,6.878,1976.5,1975.8,0.65660201]
[1772861462332,6.17812926,1976.4,1975.8,0.65660201]
[1772861462531,6.878,1976.5,1975.8,0.65660201]
[1772861462724,6.17812326,1976.4,1975.8,0.65660201]
[1772861462926,6.878,1976.5,1975.8,0.65660201]
[1772861463132,6.17813453,1976.4,1975.8,0.65660201]
[1772861463332,6.878,1976.5,1975.8,0.65660201]
[1772861463525,6.17802425,1976.4,1975.8,0.65660201]
[1772861463724,6.878,1976.5,1975.8,0.65660201]
[1772861463924,6.17802593,1976.4,1975.8,0.65660201]
[1772861464124,6.878,1976.5,1975.8,0.65660201]
[1772861464324,6.17836182,1976.4,1975.8,0.65660201]
[1772861464526,6.878,1976.5,1975.8,0.65660201]
[1772861464728,6.17862582,1976.4,1975.8,0.65660201]
[1772861464931,6.878,1976.5,1975.8,0.65660201]
[1772861465131,6.17862034,1976.4,1975.8,0.65660201]
[1772861465331,6.878,1976.5,1975.8,0.65660201]
[1772861465533,6.1787752,1976.4,1975.8,0.65660201]
[1772861465733,6.878,1976.5,1975.8,0.65660201]
[1772861466032,6.17877806,1976.4,1975.8,0.65660201]
[1772861466234,6.878,1976.5,1975.8,0.65660201]
[1772861466435,6.17899146,1976.4,1975.8,0.65660201]
[1772861466635,6.878,1976.5,1975.8,0.65660201]
[1772861466831,6.17899077,1976.4,1975.8,0.65660201]
[1772861467031,6.878,1976.5,1975.8,0.65660201]
[1772861467232,6.17925984,1976.4,1975.8,0.65660201]
[1772861467537,6.878,1976.5,1975.8,0.65660201]
[1772861467737,6.17962164,1976.4,1975.8,0.65660201]
[1772861467933,6.878,1976.5,1975.8,0.65660201]
[1772861468132,6.17962353,1976.4,1975.8,0.65660201]
[1772861468333,6.878,1976.5,1975.8,0.65660201]
[1772861468637,6.17996125,1976.4,1975.8,0.65660201]
[1772861468935,6.878,1976.5,1975.8,0.65660201]
[1772861469131,6.18511154,1976.4,1975.8,0.65660201]
[1772861469333,6.878,1976.5,1975.8,0.65660201]
[1772861469533,6.18554539,1976.4,1975.8,0.65660201]
[1772861469734,6.878,1976.5,1975.8,0.65660201]
[1772861469939,0.5475249,1976.1,1975.4,0.55464646]
[1772861470137,0.5475249,1976.0,1975.4,0.55464646]
[1772861479346,0.5475249,1975.8,1975.3,0.00431748]
[1772861479647,0.5475249,1975.8,1975.2,0.55464646]
[1772861480451,0.5475249,1975.8,1975.2,0.56063091]
[1772861480942,0.5475249,1975.8,1975.2,0.00598445]
[1772861485459,0.5475249,1975.8,1975.2,0.56063091]
[1772861493860,0.56885243,1976.2,1975.2,0.56063091]
[1772861494073,0.56885243,1976.0,1975.2,0.56063091]
[1772861496967,0.56885243,1976.0,1975.3,0.55261301]
[1772861503481,0.56885243,1976.4,1975.3,0.55261301]
[1772861503782,0.56885243,1976.2,1975.3,0.55261301]
[1772861518493,0.56885243,1976.2,1975.2,40.80598445]
[1772861518691,6.982,1976.5,1975.2,40.80598445]
[1772861518692,0.57782081,1975.9,1975.3,0.57172514]
[1772861519093,0.57782081,1975.7,1975.2,0.00598445]
[1772861519798,0.57782081,1975.7,1975.0,0.57172514]
[1772861519994,0.57782081,1975.5,1975.0,0.57172514]
[1772861520198,0.57782081,1975.5,1974.7,20.581]
[1772861520395,0.57782081,1975.5,1974.8,0.57172514]
[1772861520894,0.57782081,1975.5,1974.8,0.57656544]
[1772861523001,0.55215272,1975.3,1974.8,0.0048403]
[1772861523201,0.55215272,1975.3,1974.8,0.57496314]
[1772861525305,0.55215272,1975.3,1974.5,0.57012284]
[1772861526308,0.55215272,1975.3,1974.5,0.57449075]
[1772861528514,0.55215272,1975.3,1974.7,0.57012284]
[1772861555933,0.55215272,1975.3,1974.6,0.56467359]
[1772861556140,0.59060971,1975.1,1974.3,0.56467359]
[1772861556433,0.59060971,1974.9,1974.3,0.56467359]
[1772861557243,0.59612754,1974.9,1974.3,0.57099694]
[1772861560434,0.59612754,1974.9,1974.3,0.00632335]
[1772861560642,0.59060971,1974.7,1974.3,0.00632335]
[1772861561542,0.59060971,1974.7,1974.1,0.56467359]
[1772861562640,0.59060971,1974.7,1974.1,0.57123681]
[1772861578453,0.59060971,1974.7,1974.1,0.00656322]
[1772861581152,0.59060971,1974.7,1974.1,0.56091615]
[1772861585356,0.59060971,1974.7,1974.1,0.00656322]
[1772861587158,0.59060971,1974.7,1973.7,0.54489488]
[1772861588152,0.59060971,1974.7,1973.7,0.54873555]
[1772861591260,0.59060971,1974.7,1973.9,0.54489488]
[1772861616592,0.56925731,1974.5,1973.9,0.54489488]
[1772861617395,0.56925731,1974.5,1973.7,0.5873615]
[1772861623102,0.56925731,1974.3,1973.7,0.00384067]
[1772861623601,0.56925731,1974.3,1973.7,0.5873615]
[1772861629402,0.56925731,1974.3,1973.7,0.00384067]
[1772861629600,0.56925731,1974.3,1973.4,0.58352083]
[1772861630506,0.56925731,1974.3,1973.4,0.58846684]
[1772861635110,0.56925731,1974.3,1973.4,0.00494601]
[1772861636811,0.56925731,1974.1,1973.4,0.00494601]
[1772861637215,0.56925731,1974.0,1973.4,0.00494601]
[1772861640617,2.53043944,1974.0,1973.4,0.00494601]
[1772861640812,0.60197996,1973.9,1973.4,0.00494601]
[1772861641116,0.60197996,1973.9,1973.2,0.58352083]
[1772861642117,0.60197996,1973.9,1973.2,0.58811072]
[1772861653924,0.60197996,1973.9,1973.3,1.96118213]
[1772861654220,0.60197996,1973.9,1973.4,0.58770433]
[1772861655421,0.54368032,1974.0,1973.4,0.58770433]
[1772861663330,0.54368032,1973.8,1973.4,0.58770433]
[1772861664232,0.54368032,1974.0,1973.6,0.58770433]
[1772861667729,0.54368032,1974.0,1973.3,1.96118213]
[1772861667730,0.54368032,1974.4,1973.8,0.58770433]
[1772861667933,0.54368032,1974.2,1973.8,0.58770433]
[1772861668236,0.54368032,1974.2,1973.4,0.58770433]
[1772861671937,0.54368032,1974.2,1973.6,0.58154468]
[1772861672938,0.58436938,1974.5,1973.8,0.58154468]
[1772861673131,0.58436938,1974.4,1974.0,0.58154468]
[1772861675135,6.79,1974.7,1974.0,0.58154468]
[1772861675339,0.58436938,1974.5,1974.0,0.58154468]
[1772861686346,0.58436938,1974.1,1973.4,0.58154468]
[1772861691151,0.58436938,1973.9,1973.4,0.58154468]
[1772861691554,0.58436938,1973.9,1973.3,0.58154468]
[1772861691952,0.58436938,1973.7,1973.3,0.58154468]
[1772861693453,0.25327,1974.3,1973.3,0.58154468]
[1772861693454,0.58436938,1973.9,1973.4,0.58154468]
[1772861697764,0.58436938,1973.9,1973.2,0.55487718]
[1772861702363,0.55243015,1974.3,1973.4,0.57246109]
[1772861710273,0.55243015,1974.4,1973.7,0.57246109]
[1772861725880,0.55243015,1974.4,1973.4,0.57246109]
[1772861729983,0.55243015,1974.2,1973.4,0.57246109]
[1772861742511,0.59830094,1974.5,1973.4,0.57246109]
[1772861742710,0.59830094,1974.5,1973.6,0.58089528]
[1772861762522,0.59830094,1974.5,1973.8,0.57341258]
[1772861764618,2.55793506,1974.5,1973.8,0.57341258]
[1772861764822,0.59545376,1974.4,1973.7,0.57341258]
[1772861765618,0.59545376,1974.2,1973.5,0.57341258]
[1772861774331,0.59545376,1974.0,1973.5,0.57341258]
[1772861778730,0.59545376,1974.2,1973.6,0.57341258]
[1772861779240,0.59545376,1974.4,1973.8,0.57341258]
[1772861783434,0.59545376,1974.4,1974.0,0.57341258]
[1772861783640,0.59545376,1974.8,1974.2,0.57341258]
[1772861785337,0.00551783,1974.9,1974.4,0.57341258]
[1772861785338,0.60097159,1974.9,1974.4,0.57341258]
[1772861786542,0.59545376,1975.3,1974.6,0.57341258]
[1772861786743,0.59545376,1975.2,1974.6,0.57341258]
[1772861787438,0.60173665,1975.2,1974.6,0.57791982]
[1772861787742,0.59545376,1975.0,1974.6,0.00450724]
[1772861788742,0.59545376,1975.0,1974.6,0.57791982]
[1772861792347,0.59545376,1975.0,1974.6,0.00450724]
[1772861794242,0.59545376,1975.0,1974.4,0.59961662]
[1772861795346,0.59545376,1975.0,1974.4,0.6034175]
[1772861796249,0.55972967,1974.6,1974.1,0.59961662]
[1772861797356,0.55972967,1974.6,1974.1,0.60446281]
[1772861798857,0.55972967,1974.6,1974.1,0.00484619]
[1772861804660,0.55972967,1974.4,1974.1,0.00484619]
[1772861805361,0.55972967,1974.4,1973.9,0.59961662]
[1772861806361,0.55972967,1974.4,1973.9,0.60390712]
[1772861818764,1.95963412,1974.7,1973.9,0.60390712]
[1772861818969,0.57705225,1975.0,1974.2,0.58556731]
[1772861819170,0.57705225,1975.0,1974.4,0.58556731]
[1772861820965,0.57705225,1975.1,1974.6,0.58556731]
[1772861823062,0.58753882,1975.2,1974.8,0.59991437]
[1772861823261,0.58259267,1975.2,1974.8,0.59991437]
[1772861824969,0.58125593,1975.3,1974.8,0.59991437]
[1772861825876,0.5862894,1975.3,1974.8,0.59991437]
[1772861829575,0.00503347,1975.3,1974.8,0.59991437]
[1772861831372,0.58125593,1975.5,1974.8,0.59991437]
[1772861832277,0.58622106,1975.5,1974.8,0.59991437]
[1772861833373,0.39201197,1975.7,1974.9,0.59991437]
[1772861834276,0.39794688,1975.7,1974.9,0.59991437]
[1772861835477,0.00593491,1975.7,1974.9,0.59991437]
[1772861836378,0.58125593,1976.0,1974.9,0.59991437]
[1772861836579,0.58125593,1976.0,1975.2,0.59991437]
[1772861837379,0.58771618,1976.0,1975.2,0.59991437]
[1772861843381,0.58771618,1976.0,1975.1,0.59991437]
[1772861844380,0.58771618,1976.0,1974.5,0.59991437]
[1772861844883,1.95805207,1975.8,1974.5,0.59991437]
[1772861845084,0.58125593,1975.7,1974.5,0.59991437]
[1772861852891,0.58125593,1975.7,1974.7,0.59836408]
[1772861862201,0.58484558,1976.0,1974.9,1.95805207]
[1772861862505,0.58484558,1976.0,1975.0,0.59836408]
[1772861864908,0.58484558,1976.0,1975.3,0.59836408]
[1772861865108,0.58484558,1976.0,1975.3,0.60450843]
[1772861865511,0.00646025,1976.0,1975.3,0.60450843]
[1772861866710,0.58484558,1976.0,1975.5,0.59836408]
[1772861867911,0.00646025,1976.0,1975.5,0.59836408]
[1772861868314,0.57838533,1976.1,1975.5,0.59836408]
[1772861869220,0.58336137,1976.1,1975.5,0.59836408]
[1772861874822,0.58336137,1976.1,1975.4,0.59836408]
[1772861876224,0.58336137,1976.1,1975.3,0.00614435]
[1772861877430,0.58336137,1976.1,1975.0,0.59836408]
[1772861878328,0.58336137,1976.1,1975.0,0.60343482]
[1772861884723,0.55858127,1975.9,1975.0,0.60343482]
[1772861886534,0.55858127,1975.9,1975.1,0.55809918]
[1772861891136,0.55858127,1975.9,1975.3,0.55809918]
[1772861891337,0.55858127,1976.0,1975.3,0.55809918]
[1772861892728,0.00497604,1976.1,1975.5,0.55809918]
[1772861893130,0.00497604,1976.1,1975.7,0.55809918]
[1772861895236,0.56355731,1976.1,1975.7,0.55809918]
[1772861895539,0.00497604,1976.1,1975.7,0.55809918]
[1772861896739,0.55858127,1976.3,1975.7,0.55809918]
[1772861897642,0.5621286,1976.3,1975.7,0.55809918]
[1772861901045,0.5621286,1976.3,1975.9,0.55809918]
[1772861902047,0.00354733,1976.3,1975.9,0.55809918]
[1772861902245,0.55858127,1976.8,1976.3,0.55809918]
[1772861903248,0.56499681,1976.8,1976.3,0.55809918]
[1772861910751,0.56499681,1976.8,1976.1,0.55809918]
[1772861912948,0.54384778,1976.6,1975.9,0.58791033]
[1772861914749,0.54384778,1976.4,1975.8,0.58791033]
[1772861915050,1.95703939,1976.3,1975.7,0.58791033]
[1772861915251,0.54384778,1976.2,1975.7,0.58791033]
[1772861929652,0.55026332,1976.8,1976.0,0.58791033]
[1772861929853,0.54384778,1976.7,1976.2,0.58791033]
[1772861930052,0.54384778,1976.7,1976.1,0.58791033]
[1772861931653,0.00641554,1976.8,1976.1,0.58791033]
[1772861931654,0.00641554,1976.8,1976.2,0.58791033]
[1772861932260,0.55026332,1976.8,1976.2,0.58791033]
[1772861934863,0.00641554,1976.8,1976.2,0.58791033]
[1772861936466,0.00641554,1976.8,1976.4,0.58791033]
[1772861936666,0.00641554,1976.8,1976.4,0.5927616]
[1772861937266,0.55026332,1976.8,1976.4,0.5927616]
[1772861939872,0.55026332,1976.8,1976.4,0.00485127]
[1772861940472,0.55026332,1976.8,1976.4,0.58838618]
[1772861941875,0.55026332,1976.8,1976.4,0.00485127]
[1772861942172,0.55026332,1976.8,1976.1,0.55740989]
[1772861943071,0.55026332,1976.8,1976.2,0.55740989]
[1772861943271,0.00641554,1976.8,1976.4,0.55740989]
[1772861943872,0.55520612,1977.1,1976.4,0.55740989]